[Event "WSTCC-50 2024"]
[Site "Krakow"]
[Date "2024.07.05"]
[Round "4.17"]
[White "Slabek, Grzegorz"]
[Black "Kirby, Peter J."]
[Result "1-0"]
[ECO "D04"]
[WhiteElo "1962"]
[BlackElo "1984"]
[Annotator "NA RC"]
[PlyCount "69"]
[EventDate "2024.07.01"]
[EventType "team-tourn"]
[EventCountry "POL"]
[SourceTitle "playchess.com"]
[Source "ChessBase"]
[SourceQuality "1"]
[TimeControl "40/5400+30:1800+30"]

1. d4 {[%emt 0:00:04]} d5 {[%emt 0:00:04]} 2. Nf3 {[%emt 0:00:08]} Nf6 {[%emt 0:00:06]} 3. e3 {[%emt 0:00:22]} c5 {[%emt 0:00:08]} 4. Be2 {[%emt 0:00:04]} Nc6 {[%emt 0:00:22]} 5. O-O {[%emt 0:00:10]} Bg4 {[%emt 0:00:35]} 6. b3 {[%emt 0:00:44]} cxd4 {[%emt 0:00:40]} 7. Nxd4 {[%emt 0:00:32]} Bxe2 {[%emt 0:00:48]} 8. Qxe2 {[%emt 0:00:25]} e6 {[%emt 0:04:17]} 9. Bb2 {[%emt 0:02:22]} Be7 {[%emt 0:00:47]} 10. Nd2 {[%emt 0:00:24]} Rc8 {[%emt 0:04:29]} 11. c4 {[%emt 0:00:32]} O-O {[%emt 0:01:47]} 12. Rfd1 {[%emt 0:01:40]} Nxd4 {[%emt 0:06:58]} 13. Bxd4 {[%emt 0:00:24]} Bc5 {[%emt 0:03:36]} 14. Bxc5 {[%emt 0:03:33]} Rxc5 {[%emt 0:00:14]} 15. b4 {[%emt 0:00:28]} Rc7 {[%emt 0:03:46]} 16. c5 {[%emt 0:00:34]} Qd7 {[%emt 0:04:16]} 17. Qd3 {[%emt 0:03:07]} Rd8 {[%emt 0:06:35]} 18. Qd4 {[%emt 0:01:20]} Qa4 {[%emt 0:09:23]} 19. a3 {[%emt 0:01:40]} Re8 {[%emt 0:03:55]} 20. Qe5 {[%emt 0:02:32]} Rce7 {[%emt 0:00:51]} 21. h3 {[%emt 0:01:17]} Qc6 {[%emt 0:06:47]} 22. Nb3 {[%emt 0:01:04]} Ne4 {[%emt 0:02:39]} 23. Qd4 {[%emt 0:02:17]} Rd7 {[%emt 0:03:01]} 24. a4 {[%emt 0:01:14]} e5 {[%emt 0:01:11]} 25. Qb2 {[%emt 0:01:44]} a6 {[%emt 0:01:14]} 26. Na5 {[%emt 0:02:58]} Qf6 {[%emt 0:02:55]} 27. Nc4 {[%emt 0:03:33]} d4 {[%emt 0:02:42]} 28. exd4 {[%emt 0:03:53]} exd4 {[%emt 0:00:43]} 29. Re1 {[%emt 0:00:55]} Rdd8 {[%emt 0:01:38]} 30. f3 {[%emt 0:05:43]} Nc3 {[%emt 0:00:34]} 31. Nd6 {[%emt 0:00:58]} Rxe1+ {[%emt 0:03:07]} 32. Rxe1 {[%emt 0:00:07]} Nxa4 {[%emt 0:00:07]} 33. Qe2 {[%emt 0:04:59]} h6 {[%emt 0:01:56]} 34. Qd3 {[%emt 0:01:05]} b5 {[%emt 0:01:22]} 35. Ne4 {[%emt 0:05:19]} 1-0

[Event "WSTCC-50 2024"]
[Site "Krakow"]
[Date "2024.07.05"]
[Round "4.18"]
[White "Sielicki, Tomasz"]
[Black "Burrows, Martin P"]
[Result "1/2-1/2"]
[ECO "C01"]
[WhiteElo "2017"]
[BlackElo "2019"]
[Annotator "NA RC"]
[PlyCount "38"]
[EventDate "2024.07.01"]
[EventType "team-tourn"]
[EventCountry "POL"]
[SourceTitle "playchess.com"]
[Source "ChessBase"]
[SourceQuality "1"]
[TimeControl "40/5400+30:1800+30"]

1. d4 {[%emt 0:00:06]} e6 {[%emt 0:00:09]} 2. e4 {[%emt 0:04:38]} d5 {[%emt 0:00:11]} 3. exd5 {[%emt 0:01:25]} exd5 {[%emt 0:00:07]} 4. Nf3 {[%emt 0:00:21]} c6 {[%emt 0:02:07]} 5. Bd3 {[%emt 0:02:02]} Bd6 {[%emt 0:00:14]} 6. O-O {[%emt 0:00:32]} Ne7 {[%emt 0:00:57]} 7. c4 {[%emt 0:04:59]} dxc4 {[%emt 0:07:11]} 8. Bxc4 {[%emt 0:00:16]} O-O {[%emt 0:01:02]} 9. Bg5 {[%emt 0:03:26]} Nd7 {[%emt 0:08:24]} 10. Re1 {[%emt 0:03:39]} Nb6 {[%emt 0:00:34]} 11. Bb3 {[%emt 0:00:58]} Qc7 {[%emt 0:06:41]} 12. Nc3 {[%emt 0:03:22]} Ned5 {[%emt 0:15:18]} 13. Rc1 {[%emt 0:04:50]} Be6 {[%emt 0:04:20]} 14. Nb5 {[%emt 0:02:47]} Qb8 {[%emt 0:00:41]} 15. Nxd6 {[%emt 0:01:39]} Qxd6 {[%emt 0:00:03]} 16. Bh4 {[%emt 0:07:42]} Rfe8 {[%emt 0:02:01]} 17. Bg3 {[%emt 0:06:06]} Qf8 {[%emt 0:00:52]} 18. Bc2 {[%emt 0:05:26]} h6 {[%emt 0:10:55]} 19. a3 {[%emt 0:01:34]} Nd7 {[%emt 0:04:23]} 1/2-1/2

[Event "WSTCC-50 2024"]
[Site "Krakow"]
[Date "2024.07.05"]
[Round "4.18"]
[White "Rowe, Peter"]
[Black "Kawula, Andrzej"]
[Result "1-0"]
[ECO "D02"]
[WhiteElo "1960"]
[BlackElo "1847"]
[Annotator "RC"]
[PlyCount "139"]
[EventDate "2024.07.01"]
[EventType "team-tourn"]
[EventCountry "POL"]
[SourceTitle "playchess.com"]
[Source "ChessBase"]
[SourceQuality "1"]
[TimeControl "40/5400+30:1800+30"]

1. d4 {[%emt 0:00:09]} d5 {[%emt 0:00:16]} 2. Nf3 {[%emt 0:00:19]} e6 {[%emt 0:00:20]} 3. Bf4 {[%emt 0:00:26]} f5 {[%emt 0:00:22]} 4. e3 {[%emt 0:01:40]} Nf6 {[%emt 0:00:23]} 5. h3 {[%emt 0:01:11]} Bd6 {[%emt 0:00:46]} 6. Ne5 {[%emt 0:01:43]} O-O {[%emt 0:00:31]} 7. Be2 {[%emt 0:01:05]} c5 {[%emt 0:00:39]} 8. c3 {[%emt 0:00:43]} Nc6 {[%emt 0:00:30]} 9. Nd2 {[%emt 0:00:46]} Bxe5 {[%emt 0:01:56]} 10. Bxe5 {[%emt 0:04:22]} Nxe5 {[%emt 0:01:19]} 11. dxe5 {[%emt 0:00:10]} Nd7 {[%emt 0:02:51]} 12. f4 {[%emt 0:00:39]} Qh4+ {[%emt 0:01:59]} 13. Kf1 {[%emt 0:00:09]} c4 {[%emt 0:08:17]} 14. Nf3 {[%emt 0:05:01]} Qe7 {[%emt 0:03:34]} 15. Nd4 {[%emt 0:08:50]} Nc5 {[%emt 0:01:03]} 16. Qe1 {[%emt 0:05:18]} Bd7 {[%emt 0:01:08]} 17. Rb1 {[%emt 0:03:29]} b5 {[%emt 0:09:21]} 18. Kg1 {[%emt 0:01:33]} Kh8 {[%emt 0:03:59]} 19. Kh2 {[%emt 0:01:55]} g5 {[%emt 0:02:26]} 20. g3 {[%emt 0:01:19]} Rg8 {[%emt 0:01:40]} 21. Bd1 {[%emt 0:08:00]} Nd3 {[%emt 0:07:32]} 22. Qd2 {[%emt 0:02:06]} Qg7 {[%emt 0:08:14]} 23. Rg1 {[%emt 0:00:45]} Qh6 {[%emt 0:04:11]} 24. Bc2 {[%emt 0:02:45]} gxf4 {[%emt 0:00:46]} 25. exf4 {[%emt 0:01:07]} Nxe5 {[%emt 0:03:30]} 26. Rbe1 {[%emt 0:09:28]} Ng4+ {[%emt 0:11:34]} 27. Kg2 {[%emt 0:00:33]} Nf6 {[%emt 0:01:07]} 28. Nxe6 {[%emt 0:03:55]} Bxe6 {[%emt 0:00:18]} 29. Rxe6 {[%emt 0:00:16]} Qg7 {[%emt 0:00:42]} 30. Kh2 {[%emt 0:03:46]} Ne4 {[%emt 0:06:08]} 31. Qxd5 {[%emt 0:05:30]} Rad8 {[%emt 0:01:02]} 32. Qe5 {[%emt 0:00:20]} Rd2+ {[%emt 0:03:20]} 33. Rg2 {[%emt 0:00:26]} Qxe5 {[%emt 0:00:40]} 34. Rxe5 {[%emt 0:00:31]} Rxg2+ {[%emt 0:00:22]} 35. Kxg2 {[%emt 0:00:14]} Rxg3+ {[%emt 0:01:38]} 36. Kh2 {[%emt 0:01:14]} Re3 {[%emt 0:02:45]} 37. Bxe4 {[%emt 0:01:18]} fxe4 {[%emt 0:01:43]} 38. Rxb5 {[%emt 0:00:41]} Rf3 {[%emt 0:00:13]} 39. Re5 {[%emt 0:03:15]} e3 {[%emt 0:01:14]} 40. Kg2 {[%emt 0:03:16]} Rf2+ {[%emt 0:00:18]} 41. Kg3 {[%emt 0:31:11]} Rxb2 {[%emt 0:30:23]} 42. Rxe3 {[%emt 0:03:15]} Rxa2 {[%emt 0:00:35]} 43. Re4 {[%emt 0:00:49]} Ra4 {[%emt 0:00:41]} 44. Kg4 {[%emt 0:00:32]} Kg7 {[%emt 0:00:11]} 45. Kf5 {[%emt 0:01:48]} Ra5+ {[%emt 0:01:46]} 46. Ke6 {[%emt 0:00:45]} Rh5 {[%emt 0:00:43]} 47. Rxc4 {[%emt 0:00:59]} Rxh3 {[%emt 0:00:31]} 48. Rc7+ {[%emt 0:00:55]} Kh6 {[%emt 0:01:44]} 49. c4 {[%emt 0:01:14]} Re3+ {[%emt 0:00:54]} 50. Kf6 {[%emt 0:01:05]} a5 {[%emt 0:01:53]} 51. Rc5 {[%emt 0:04:33]} a4 {[%emt 0:02:15]} 52. f5 {[%emt 0:01:07]} a3 {[%emt 0:00:22]} 53. Ra5 {[%emt 0:00:11]} Rc3 {[%emt 0:00:23]} 54. c5 {[%emt 0:00:23]} Kh5 {[%emt 0:02:52]} 55. Kf7 {[%emt 0:03:02]} a2 {[%emt 0:01:31]} 56. Rxa2 {[%emt 0:04:11]} Rxc5 {[%emt 0:00:00]} 57. f6 {[%emt 0:00:00]} Rc7+ {[%emt 0:00:00]} 58. Kg8 {[%emt 0:00:00]} Kg4 {[%emt 0:00:00]} 59. Rg2+ {[%emt 0:00:00]} Kf5 {[%emt 0:00:00]} 60. f7 {[%emt 0:00:00]} Rxf7 {[%emt 0:00:00]} 61. Kxf7 {[%emt 0:00:00]} h5 {[%emt 0:00:00]} 62. Kg7 {[%emt 0:00:00]} h4 {[%emt 0:00:00]} 63. Kh6 {[%emt 0:00:00]} Kf4 {[%emt 0:00:00]} 64. Kh5 {[%emt 0:00:00]} h3 {[%emt 0:00:00]} 65. Ra2 {[%emt 0:00:00]} Kg3 {[%emt 0:00:00]} 66. Ra3+ {[%emt 0:00:00]} Kg2 {[%emt 0:00:00]} 67. Kg4 {[%emt 0:00:00]} h2 {[%emt 0:00:00]} 68. Ra2+ {[%emt 0:00:00]} Kg1 {[%emt 0:00:00]} 69. Kg3 {[%emt 0:00:00]} h1=N+ {[%emt 0:00:00]} 70. Kf3 {[%emt 0:00:00]} 1-0

[Event "WSTCC-50 2024"]
[Site "Krakow"]
[Date "2024.07.05"]
[Round "4.19"]
[White "Fraser-Mitchell, Jeremy N"]
[Black "Flis, Pawel"]
[Result "0-1"]
[ECO "A45"]
[WhiteElo "2036"]
[BlackElo "1980"]
[Annotator "NA RC"]
[PlyCount "54"]
[EventDate "2024.07.01"]
[EventType "team-tourn"]
[EventCountry "POL"]
[SourceTitle "playchess.com"]
[Source "ChessBase"]
[SourceQuality "1"]
[TimeControl "40/5400+30:1800+30"]

1. d4 {[%emt 0:00:03]} Nf6 {[%emt 0:00:04]} 2. Nc3 {[%emt 0:00:09]} c5 {[%emt 0:00:19]} 3. dxc5 {[%emt 0:00:27]} e6 {[%emt 0:00:07]} 4. e4 {[%emt 0:00:12]} Bxc5 {[%emt 0:03:11]} 5. e5 {[%emt 0:00:19]} Nd5 {[%emt 0:04:11]} 6. Nxd5 {[%emt 0:01:07]} exd5 {[%emt 0:00:06]} 7. Qxd5 {[%emt 0:00:39]} Qb6 {[%emt 0:00:20]} 8. Nh3 {[%emt 0:49:52]} d6 {[%emt 0:03:56]} 9. Ng5 {[%emt 0:05:31]} Bxf2+ {[%emt 0:06:35]} 10. Kd1 {[%emt 0:00:08]} O-O {[%emt 0:06:54]} 11. exd6 {[%emt 0:06:56]} Nc6 {[%emt 0:11:02]} 12. c3 {[%emt 0:03:39]} h6 {[%emt 0:11:12]} 13. Ne4 {[%emt 0:02:39]} Be6 {[%emt 0:10:29]} 14. Qh5 {[%emt 0:05:13]} Be3 {[%emt 0:07:40]} 15. Bd3 {[%emt 0:07:41]} f5 {[%emt 0:04:25]} 16. Ng3 {[%emt 0:05:41]} Bxc1 {[%emt 0:04:51]} 17. Kxc1 {[%emt 0:02:16]} Qe3+ {[%emt 0:00:17]} 18. Kc2 {[%emt 0:01:30]} Nd4+ {[%emt 0:10:04]} 19. cxd4 {[%emt 0:00:32]} Rac8+ {[%emt 0:00:04]} 20. Kd1 {[%emt 0:00:08]} Qxd3+ {[%emt 0:00:11]} 21. Ke1 {[%emt 0:00:15]} Rc2 {[%emt 0:02:26]} 22. Qd1 {[%emt 0:00:33]} Qe3+ {[%emt 0:01:03]} 23. Ne2 {[%emt 0:00:05]} Rxb2 {[%emt 0:01:36]} 24. Rc1 {[%emt 0:03:32]} Rxe2+ {[%emt 0:01:41]} 25. Qxe2 {[%emt 0:00:21]} Qxc1+ {[%emt 0:00:10]} 26. Kf2 {[%emt 0:00:09]} Qf4+ {[%emt 0:04:21]} 27. Ke1 {[%emt 0:01:56]} Qxd6 {[%emt 0:01:07]} 0-1

[Event "WSTCC-50 2024"]
[Site "Krakow"]
[Date "2024.07.05"]
[Round "4.19"]
[White "Czernicki, Bogdan"]
[Black "Brookfield, Toby"]
[Result "1/2-1/2"]
[ECO "D05"]
[WhiteElo "1886"]
[BlackElo "1894"]
[Annotator "NA RC"]
[PlyCount "47"]
[EventDate "2024.07.01"]
[EventType "team-tourn"]
[EventCountry "POL"]
[SourceTitle "playchess.com"]
[Source "ChessBase"]
[SourceQuality "1"]
[TimeControl "40/5400+30:1800+30"]

1. d4 {[%emt 0:00:04]} Nf6 {[%emt 0:00:11]} 2. Nf3 {[%emt 0:00:13]} c5 {[%emt 0:00:07]} 3. e3 {[%emt 0:00:13]} e6 {[%emt 0:00:27]} 4. Bd3 {[%emt 0:00:35]} d5 {[%emt 0:00:22]} 5. c3 {[%emt 0:00:08]} Nc6 {[%emt 0:00:34]} 6. O-O {[%emt 0:00:25]} Bd6 {[%emt 0:00:12]} 7. dxc5 {[%emt 0:01:59]} Bxc5 {[%emt 0:00:13]} 8. b4 {[%emt 0:00:13]} Bd6 {[%emt 0:04:00]} 9. b5 {[%emt 0:02:06]} Ne7 {[%emt 0:04:48]} 10. Nbd2 {[%emt 0:02:07]} O-O {[%emt 0:00:14]} 11. c4 {[%emt 0:00:26]} Ng6 {[%emt 0:06:34]} 12. Bb2 {[%emt 0:00:38]} Re8 {[%emt 0:02:50]} 13. Qc2 {[%emt 0:01:18]} Qe7 {[%emt 0:08:03]} 14. Rac1 {[%emt 0:11:47]} b6 {[%emt 0:06:07]} 15. Bxg6 {[%emt 0:04:52]} hxg6 {[%emt 0:00:26]} 16. Ne5 {[%emt 0:00:10]} Bb7 {[%emt 0:03:19]} 17. Ndf3 {[%emt 0:06:12]} Rac8 {[%emt 0:01:38]} 18. Qa4 {[%emt 0:03:28]} dxc4 {[%emt 0:08:15]} 19. Rxc4 {[%emt 0:05:34]} Rxc4 {[%emt 0:07:34]} 20. Qxc4 {[%emt 0:05:56]} Bd5 {[%emt 0:00:16]} 21. Qc2 {[%emt 0:05:59]} Bc5 {[%emt 0:06:30]} 22. Ng5 {[%emt 0:13:27]} Rf8 {[%emt 0:05:58]} 23. e4 {[%emt 0:17:22]} Ba8 {[%emt 0:00:51]} 24. Rd1 {[%emt 0:04:37]} 1/2-1/2

[Event "WSTCC-50 2024"]
[Site "Krakow"]
[Date "2024.07.05"]
[Round "4.20"]
[White "Zielinski, Olgierd"]
[Black "Noyce, Robert C"]
[Result "1/2-1/2"]
[ECO "B01"]
[WhiteElo "1913"]
[BlackElo "2088"]
[Annotator "NA RC"]
[PlyCount "30"]
[EventDate "2024.07.01"]
[EventType "team-tourn"]
[EventCountry "POL"]
[SourceTitle "playchess.com"]
[Source "ChessBase"]
[SourceQuality "1"]
[TimeControl "40/5400+30:1800+30"]

1. e4 {[%emt 0:00:04]} d5 {[%emt 0:00:09]} 2. exd5 {[%emt 0:00:07]} Nf6 {[%emt 0:00:06]} 3. Nf3 {[%emt 0:00:09]} Nxd5 {[%emt 0:00:12]} 4. d4 {[%emt 0:00:09]} g6 {[%emt 0:00:21]} 5. c4 {[%emt 0:00:27]} Nb6 {[%emt 0:00:08]} 6. Nc3 {[%emt 0:00:10]} Bg4 {[%emt 0:03:57]} 7. c5 {[%emt 0:01:29]} N6d7 {[%emt 0:02:11]} 8. h3 {[%emt 0:00:16]} Bxf3 {[%emt 0:00:35]} 9. Qxf3 {[%emt 0:00:08]} c6 {[%emt 0:02:52]} 10. Bc4 {[%emt 0:00:26]} Nf6 {[%emt 0:02:16]} 11. Be3 {[%emt 0:00:17]} Bg7 {[%emt 0:01:05]} 12. O-O {[%emt 0:01:17]} O-O {[%emt 0:00:35]} 13. Rad1 {[%emt 0:03:52]} e6 {[%emt 0:05:02]} 14. Bg5 {[%emt 0:10:12]} h6 {[%emt 0:02:28]} 15. Be3 {[%emt 0:00:08]} Nbd7 {[%emt 0:09:38]} 1/2-1/2

[Event "WSTCC-50 2024"]
[Site "Krakow"]
[Date "2024.07.05"]
[Round "4.20"]
[White "Morgan, Jamie"]
[Black "Skorecki, Janusz"]
[Result "1-0"]
[ECO "C24"]
[WhiteElo "1843"]
[BlackElo "1729"]
[Annotator "NA RC"]
[PlyCount "89"]
[EventDate "2024.07.01"]
[EventType "team-tourn"]
[EventCountry "POL"]
[SourceTitle "playchess.com"]
[Source "ChessBase"]
[SourceQuality "1"]
[TimeControl "40/5400+30:1800+30"]

1. e4 {[%emt 0:00:14]} e5 {[%emt 0:00:09]} 2. Bc4 {[%emt 0:00:06]} Nf6 {[%emt 0:00:07]} 3. d3 {[%emt 0:00:12]} Be7 {[%emt 0:00:27]} 4. Nc3 {[%emt 0:03:07]} O-O {[%emt 0:00:27]} 5. Nf3 {[%emt 0:00:31]} Nc6 {[%emt 0:00:29]} 6. O-O {[%emt 0:00:25]} d6 {[%emt 0:01:00]} 7. Ne2 {[%emt 0:05:20]} Na5 {[%emt 0:05:46]} 8. Bb3 {[%emt 0:00:30]} Nxb3 {[%emt 0:00:18]} 9. axb3 {[%emt 0:00:06]} Bg4 {[%emt 0:01:03]} 10. Ng3 {[%emt 0:00:58]} a6 {[%emt 0:08:14]} 11. h3 {[%emt 0:03:00]} Bd7 12. Bd2 {[%emt 0:15:32]} Ne8 {[%emt 0:07:11]} 13. Nf5 {[%emt 0:08:28]} Bxf5 {[%emt 0:00:40]} 14. exf5 {[%emt 0:00:04]} Bf6 {[%emt 0:02:51]} 15. Bc3 {[%emt 0:13:12]} c6 {[%emt 0:06:06]} 16. Re1 {[%emt 0:03:06]} Nc7 {[%emt 0:02:30]} 17. Nd2 {[%emt 0:09:49]} Nd5 {[%emt 0:03:30]} 18. Ne4 {[%emt 0:00:30]} Nxc3 {[%emt 0:01:51]} 19. bxc3 {[%emt 0:01:17]} d5 {[%emt 0:01:38]} 20. Nxf6+ {[%emt 0:07:31]} Qxf6 {[%emt 0:00:14]} 21. Qf3 {[%emt 0:00:58]} Rfe8 {[%emt 0:02:38]} 22. Re2 {[%emt 0:03:51]} e4 {[%emt 0:15:08]} 23. dxe4 {[%emt 0:02:05]} Rxe4 24. Rxe4 {[%emt 0:00:59]} dxe4 {[%emt 0:03:02]} 25. Qxe4 {[%emt 0:00:50]} Qxc3 {[%emt 0:00:45]} 26. Rd1 {[%emt 0:01:16]} Kf8 {[%emt 0:03:21]} 27. Qh4 {[%emt 0:02:03]} Re8 {[%emt 0:02:25]} 28. Qxh7 {[%emt 0:05:36]} Re1+ {[%emt 0:00:24]} 29. Rxe1 Qxe1+ 30. Kh2 {[%emt 0:00:43]} Qxf2 {[%emt 0:02:18]} 31. Qh8+ {[%emt 0:02:53]} Ke7 {[%emt 0:01:05]} 32. Qb8 {[%emt 0:00:13]} Qb6 {[%emt 0:01:03]} 33. Qe5+ {[%emt 0:01:01]} Kf8 {[%emt 0:03:26]} 34. Qb8+ {[%emt 0:01:21]} Ke7 {[%emt 0:00:20]} 35. Qe5+ {[%emt 0:00:03]} Kf8 {[%emt 0:00:27]} 36. f6 {[%emt 0:00:40]} gxf6 {[%emt 0:00:26]} 37. Qxf6 {[%emt 0:00:15]} Qc7+ {[%emt 0:00:24]} 38. Kh1 {[%emt 0:00:19]} Qd7 {[%emt 0:00:54]} 39. h4 {[%emt 0:01:52]} Qd1+ {[%emt 0:03:26]} 40. Kh2 {[%emt 0:00:06]} Qxc2 {[%emt 0:03:01]} 41. h5 {[%emt 0:30:59]} Qh7 {[%emt 0:36:40]} 42. h6 {[%emt 0:00:00]} Ke8 {[%emt 0:00:00]} 43. Qg7 {[%emt 0:00:00]} Qf5 {[%emt 0:00:00]} 44. h7 {[%emt 0:00:00]} Qh5+ {[%emt 0:00:00]} 45. Kg3 {[%emt 0:00:00]} 1-0

[Event "WSTCC-50 2024"]
[Site "Krakow"]
[Date "2024.07.05"]
[Round "4.21"]
[White "Mitchell, Martin"]
[Black "Schuster, Karsten"]
[Result "1-0"]
[ECO "A46"]
[WhiteElo "2159"]
[BlackElo "2307"]
[Annotator "TA"]
[PlyCount "132"]
[EventDate "2024.07.01"]
[EventType "team-tourn"]
[EventCountry "POL"]
[SourceTitle "playchess.com"]
[Source "ChessBase"]
[SourceQuality "1"]
[TimeControl "40/5400+30:1800+30"]

{[%evp 28,132,52,48,67,45,54,57,79,88,92,94,96,103,89,93,78,93,142,142,132,103,118,119,118,122,124,79,191,193,189,208,188,207,210,208,224,231,240,241,218,204,206,209,205,206,210,210,214,227,216,195,271,269,254,257,256,245,249,251,278,270,265,237,222,230,327,329,340,346,335,306,503,495,754,755,1079,904,1231,1229,1081,837,2044,1479,1478,1425,3159,4001,4133,2660,2589,2043,1700,1498,11498,7120,29975,29976,29978,29979,29979,29980,29986,29986,29985,29982,6103]} 1. d4 {[%emt 0:00:45]} Nf6 {[%emt 0:00:07]} 2. Nf3 {[%emt 0:01:11]} e6 {[%emt 0:00:11]} 3. Bf4 {[%emt 0:01:25]} b6 {[%emt 0:00:09]} 4. e3 {[%emt 0:00:40]} Bb7 {[%emt 0:00:06]} 5. Bd3 {[%emt 0:01:04]} Be7 {[%emt 0:00:48]} 6. h3 {[%emt 0:00:48]} O-O {[%emt 0:00:31]} 7. O-O {[%emt 0:03:47] A47: 1 d4 Nf6 2 Nf3 b6: Torre, London and Colle Systems.} Ne4 {[%emt 0:02:46]} 8. c4 {[%emt 0:08:11]} f5 {[%emt 0:02:25]} 9. Nfd2 {[%emt 0:09:22]} Nxd2 {[%emt 0:15:40]} 10. Nxd2 {[%emt 0:00:31]} d6 {[%emt 0:00:57]} 11. Be2 $146 {[%emt 0:07:37]} ({Predecessor:} 11. Qc2 Nd7 12. Bh2 Qe8 13. d5 Nc5 14. dxe6 Nxd3 15. Qxd3 Bf6 16. Rab1 Qxe6 17. Nb3 {0-1 Caliebe,N (1617)-Rosmait,E (1911) GER-chT Lands U20 2016 (5.7)}) 11... Nd7 {[%emt 0:03:49]} 12. Bf3 {[%emt 0:02:07]} c6 {[%emt 0:08:03]} 13. b4 {[%emt 0:12:00]} e5 {[%emt 0:03:43]} 14. Bh2 {[%emt 0:00:36]} Qc7 {[%emt 0:14:41]} 15. Qb3 {[%emt 0:07:29]} Kh8 {[%emt 0:00:25]} 16. Rac1 {[%emt 0:03:49]} Bf6 {[%emt 0:04:08]} 17. c5 {[%emt 0:04:58]} bxc5 {[%emt 0:12:42]} 18. bxc5 {[%emt 0:00:21]} dxc5 {[%emt 0:06:33]} 19. dxe5 {[%emt 0:00:21]} Bxe5 {[%emt 0:00:21]} 20. Bxe5 {[%emt 0:00:15]} Nxe5 {[%emt 0:00:11]} 21. Rxc5 {[%emt 0:05:34]} Ba6 {[%emt 0:04:46]} 22. Ra1 {[%emt 0:04:54]} Qd6 {[%emt 0:01:28]} ({Black should try} 22... f4) 23. Qc3 $16 {[%emt 0:00:52]} Rae8 {[%emt 0:04:53]} 24. Ra5 {[%emt 0:01:07]} c5 {[%emt 0:05:05]} 25. Rxc5 {[%emt 0:02:51]} Rc8 {[%emt 0:01:50]} 26. Rc1 {[%emt 0:04:11]} (26. Qxe5 Qxc5 27. Qf4 Qb6 $17) 26... h6 {[%emt 0:02:41]} (26... Qxc5 $2 27. Qxc5 Nxf3+ 28. Nxf3 $18) 27. Qd4 {[%emt 0:00:56]} (27. Qxe5 $2 Qxe5 (27... Qxd2 $2 28. Rxc8 Rxc8 29. Rxc8+ Bxc8 30. Qe8+ Kh7 31. Qxc8 $18) 28. Rxe5 Rxc1+ 29. Kh2 Rc2 $19) 27... Nxf3+ {[%emt 0:02:59]} (27... Qxd4 $16 28. exd4 Nd3 29. Rxc8 Rxc8 30. Rxc8+ Bxc8) 28. Nxf3 $18 {[%emt 0:00:10]} Qxd4 {[%emt 0:00:37]} 29. Nxd4 {[%emt 0:00:44]} Rxc5 {[%emt 0:01:27]} 30. Rxc5 {[%emt 0:00:04]} Bd3 {[%emt 0:00:23]} 31. Rc7 {[%emt 0:03:50]} a6 {[%emt 0:00:17]} 32. Ne6 {[%emt 0:02:52]} Rg8 {[%emt 0:00:08]} 33. a4 {[%emt 0:00:44]} g5 {[%emt 0:00:24]} 34. Nc5 {[%emt 0:01:02]} Be2 {[%emt 0:00:16]} 35. Rc6 {[%emt 0:01:28]} Kh7 {[%emt 0:00:21]} 36. Rf6 {[%emt 0:04:28]} f4 {[%emt 0:00:33]} 37. exf4 {[%emt 0:00:35]} gxf4 {[%emt 0:00:23]} 38. Rxf4 {[%emt 0:00:23]} ({But not} 38. Nxa6 Kg7 39. Rc6 (39. Rxf4 Bxa6 40. Rg4+ Kh7 $14) 39... Kh7 40. Rc7+ Kh8) 38... Rg5 {[%emt 0:00:04]} 39. Ne4 {[%emt 0:01:57]} Rg6 {[%emt 0:01:14]} (39... Ra5 $142 40. Nf6+ Kg7 41. Ne8+ Kh7) 40. Nc3 $18 {[%emt 0:00:50]} Bd3 {[%emt 0:00:29]} 41. Rd4 {[%emt 0:31:14]} Bc2 {[%emt 0:31:51]} 42. Rd7+ {[%emt 0:00:00]} Kh8 {[%emt 0:00:00]} 43. Rc7 {[%emt 0:00:00]} Rd6 {[%emt 0:00:00]} 44. Kh2 {[%emt 0:00:00]} Kg8 {[%emt 0:00:00]} 45. f4 {[%emt 0:00:00]} Rd4 {[%emt 0:00:00]} 46. a5 {[%emt 0:00:00]} h5 {[%emt 0:00:00]} (46... Bd3 $142 47. Kg3 Bf1) 47. Kg3 $18 {[%emt 0:00:00]} Bb3 {[%emt 0:00:00]} 48. Rc5 {[%emt 0:00:00]} Kg7 {[%emt 0:00:00]} 49. Kf3 {[%emt 0:00:00]} (49. Rxh5 Rd3+ 50. Kh4 Rxc3 $11) 49... Bc4 $2 {[%emt 0:00:00]} (49... Rd3+ {was called for.} 50. Ke2 Rg3) 50. Ne2 $18 {[%emt 0:00:00]} ({And not} 50. Rxh5 Rd3+ 51. Kf2 Rxc3 $11) 50... Bxe2+ {[%emt 0:00:02]} (50... Rd3+ $142 51. Ke4 Rd2) 51. Kxe2 $18 {[%emt 0:00:00]} Rxf4 {[%emt 0:00:37]} 52. Rxh5 {[%emt 0:00:00]} Ra4 {[%emt 0:00:09]} 53. Kf3 {[%emt 0:00:00]} Ra3+ {[%emt 0:01:28]} 54. Kg4 {[%emt 0:00:00]} Kg6 {[%emt 0:00:09]} 55. Rc5 {[%emt 0:00:15]} Ra4+ {[%emt 0:00:05]} 56. Kg3 {[%emt 0:00:11]} Kg7 {[%emt 0:00:22]} 57. h4 {[%emt 0:00:40]} Kh7 {[%emt 0:00:15]} 58. Kh3 {[%emt 0:00:20]} Kg7 {[%emt 0:00:04]} 59. g3 {[%emt 0:00:13]} Kh7 {[%emt 0:00:05]} 60. h5 {[%emt 0:00:11]} Kg7 {[%emt 0:00:48]} 61. g4 {[%emt 0:00:32]} Kh7 {[%emt 0:01:35]} 62. Kh4 {[%emt 0:00:49]} Kg7 {[%emt 0:00:03]} 63. Kg5 {[%emt 0:00:39]} Kf7 {[%emt 0:00:04]} 64. h6 {[%emt 0:01:23]} Ra1 {[%emt 0:00:15]} 65. Rc7+ {[%emt 0:00:36]} Ke6 {[%emt 0:00:51]} 66. Rc6+ {[%emt 0:00:15]} Kd5 1-0